{"text_format":"3","workbook":"xlsx","n_sheets":1,"sheets":["Ne pelno biudžetas"],"not_rendered":{"charts":2,"images":1,"defined_names":1},"read":"whole","date_system":"1900"}

{"sheet":"Ne pelno biudžetas","index":0,"n_rows":40,"n_cols":7,"rows_kept":40,"merged":[[16,1,16,6],[21,1,21,5]]}
[null,"Ne pelno biudžetas",{"$nulls":3},"FINANSINIAI METAI",2012]
[]
[null,{"$f":"PajamųLentelė[[#Headers],[PAJAMOS]]","v":"PAJAMOS"}]
[]
[]
[]
[]
[]
[null,null,{"$f":"CONCATENATE(\"FM \",FM-1)","v":"FM 2011"},{"$f":"CONCATENATE(\"FM \",FM)","v":"FM 2012"},{"$f":"CONCATENATE(\"FM \",FM)","v":"FM 2012"},{"$f":"CONCATENATE(\"FM \",FM)","v":"FM 2012"},{"$f":"CONCATENATE(\"FM \",FM)","v":"FM 2012"}]
[null,"PAJAMOS","PRAĖJĘ METAI","SIŪLYTA","FAKTIŠKAI","NUOKRYPIS","+ / – PRAĖJĘ METAI"]
[null,"Fondų įkūrėjai ir renginiai",{"v":150000,"d":"150000.00"},{"v":200000,"d":"200000.00"},{"v":180000,"d":"180000.00"},{"$f":"PajamųLentelė[[#This Row],[FAKTIŠKAI]]-PajamųLentelė[[#This Row],[SIŪLYTA]]","v":{"v":-20000,"d":"-20000.00 "}},{"$f":"PajamųLentelė[[#This Row],[FAKTIŠKAI]]-PajamųLentelė[[#This Row],[PRAĖJĘ METAI]]","v":{"v":30000,"d":"30000.00"}}]
[null,"Fondai",{"v":50000,"d":"50000.00"},{"v":50000,"d":"50000.00"},{"v":50000,"d":"50000.00"},{"$f":"PajamųLentelė[[#This Row],[FAKTIŠKAI]]-PajamųLentelė[[#This Row],[SIŪLYTA]]","v":{"v":0,"d":"0.00"}},{"$f":"PajamųLentelė[[#This Row],[FAKTIŠKAI]]-PajamųLentelė[[#This Row],[PRAĖJĘ METAI]]","v":{"v":0,"d":"0.00"}}]
[null,"Aukos",{"v":30000,"d":"30000.00"},{"v":40000,"d":"40000.00"},{"v":20000,"d":"20000.00"},{"$f":"PajamųLentelė[[#This Row],[FAKTIŠKAI]]-PajamųLentelė[[#This Row],[SIŪLYTA]]","v":{"v":-20000,"d":"-20000.00 "}},{"$f":"PajamųLentelė[[#This Row],[FAKTIŠKAI]]-PajamųLentelė[[#This Row],[PRAĖJĘ METAI]]","v":{"v":-10000,"d":"-10000.00 "}}]
[null,"Pajamos iš palūkanų",{"$nulls":3},{"$f":"PajamųLentelė[[#This Row],[FAKTIŠKAI]]-PajamųLentelė[[#This Row],[SIŪLYTA]]","v":{"v":0,"d":"0.00"}},{"$f":"PajamųLentelė[[#This Row],[FAKTIŠKAI]]-PajamųLentelė[[#This Row],[PRAĖJĘ METAI]]","v":{"v":0,"d":"0.00"}}]
[null,"Įvairios funkcijos",{"$nulls":3},{"$f":"PajamųLentelė[[#This Row],[FAKTIŠKAI]]-PajamųLentelė[[#This Row],[SIŪLYTA]]","v":{"v":0,"d":"0.00"}},{"$f":"PajamųLentelė[[#This Row],[FAKTIŠKAI]]-PajamųLentelė[[#This Row],[PRAĖJĘ METAI]]","v":{"v":0,"d":"0.00"}}]
[null,"BENDROSIOS SUMOS",{"$f":"SUBTOTAL(109,PajamųLentelė[PRAĖJĘ METAI])","v":{"v":230000,"d":"230,000.00Lt"}},{"$f":"SUBTOTAL(109,PajamųLentelė[SIŪLYTA])","v":{"v":290000,"d":"290,000.00Lt"}},{"$f":"SUBTOTAL(109,PajamųLentelė[FAKTIŠKAI])","v":{"v":250000,"d":"250,000.00Lt"}},{"$f":"SUBTOTAL(109,PajamųLentelė[NUOKRYPIS])","v":{"v":-40000,"d":"-40,000.00 Lt"}},{"$f":"SUBTOTAL(105,PajamųLentelė[+ / – PRAĖJĘ METAI])","v":{"v":-10000,"d":"-10,000.00 Lt"}}]
[]
[null,{"$f":"IšlaidųLentelė[[#Headers],[IŠLAIDOS]]","v":"IŠLAIDOS"}]
[]
[]
[]
[]
[]
[]
[null,null,{"$f":"CONCATENATE(\"FM \",FM-1)","v":"FM 2011"},{"$f":"CONCATENATE(\"FM \",FM)","v":"FM 2012"},{"$f":"CONCATENATE(\"FM \",FM)","v":"FM 2012"},{"$f":"CONCATENATE(\"FM \",FM)","v":"FM 2012"},{"$f":"CONCATENATE(\"FM \",FM)","v":"FM 2012"}]
[null,"IŠLAIDOS","PRAĖJĘ METAI","SIŪLYTA","FAKTIŠKAI","NUOKRYPIS","+ / – PRAĖJĘ METAI"]
[null,"Mokesčiai",{"v":15000,"d":"15,000.00"},{"v":30000,"d":"30,000.00"},{"v":30000,"d":"30,000.00"},{"$f":"IšlaidųLentelė[[#This Row],[FAKTIŠKAI]]-IšlaidųLentelė[[#This Row],[SIŪLYTA]]","v":{"v":0,"d":"0.00"}},{"$f":"IšlaidųLentelė[[#This Row],[FAKTIŠKAI]]-IšlaidųLentelė[[#This Row],[PRAĖJĘ METAI]]","v":{"v":15000,"d":"15,000.00"}}]
[null,"Pranašumai",{"v":5000,"d":"5,000.00"},{"v":7500,"d":"7,500.00"},{"v":7800,"d":"7,800.00"},{"$f":"IšlaidųLentelė[[#This Row],[FAKTIŠKAI]]-IšlaidųLentelė[[#This Row],[SIŪLYTA]]","v":{"v":300,"d":"300.00"}},{"$f":"IšlaidųLentelė[[#This Row],[FAKTIŠKAI]]-IšlaidųLentelė[[#This Row],[PRAĖJĘ METAI]]","v":{"v":2800,"d":"2,800.00"}}]
[null,"Nuoma",{"v":6000,"d":"6,000.00"},{"v":6000,"d":"6,000.00"},{"v":6000,"d":"6,000.00"},{"$f":"IšlaidųLentelė[[#This Row],[FAKTIŠKAI]]-IšlaidųLentelė[[#This Row],[SIŪLYTA]]","v":{"v":0,"d":"0.00"}},{"$f":"IšlaidųLentelė[[#This Row],[FAKTIŠKAI]]-IšlaidųLentelė[[#This Row],[PRAĖJĘ METAI]]","v":{"v":0,"d":"0.00"}}]
[null,"Komunalinės paslaugos",{"v":1000,"d":"1,000.00"},{"v":1200,"d":"1,200.00"},{"v":1150,"d":"1,150.00"},{"$f":"IšlaidųLentelė[[#This Row],[FAKTIŠKAI]]-IšlaidųLentelė[[#This Row],[SIŪLYTA]]","v":{"v":-50,"d":"(50.00)"}},{"$f":"IšlaidųLentelė[[#This Row],[FAKTIŠKAI]]-IšlaidųLentelė[[#This Row],[PRAĖJĘ METAI]]","v":{"v":150,"d":"150.00"}}]
[null,"Kelionės ir susitikimai",{"v":2500,"d":"2,500.00"},{"v":2000,"d":"2,000.00"},{"v":2800,"d":"2,800.00"},{"$f":"IšlaidųLentelė[[#This Row],[FAKTIŠKAI]]-IšlaidųLentelė[[#This Row],[SIŪLYTA]]","v":{"v":800,"d":"800.00"}},{"$f":"IšlaidųLentelė[[#This Row],[FAKTIŠKAI]]-IšlaidųLentelė[[#This Row],[PRAĖJĘ METAI]]","v":{"v":300,"d":"300.00"}}]
[null,"Profesiniai mokesčiai",{"$nulls":3},{"$f":"IšlaidųLentelė[[#This Row],[FAKTIŠKAI]]-IšlaidųLentelė[[#This Row],[SIŪLYTA]]","v":{"v":0,"d":"0.00"}},{"$f":"IšlaidųLentelė[[#This Row],[FAKTIŠKAI]]-IšlaidųLentelė[[#This Row],[PRAĖJĘ METAI]]","v":{"v":0,"d":"0.00"}}]
[null,"Rinkodara / reklama",{"$nulls":3},{"$f":"IšlaidųLentelė[[#This Row],[FAKTIŠKAI]]-IšlaidųLentelė[[#This Row],[SIŪLYTA]]","v":{"v":0,"d":"0.00"}},{"$f":"IšlaidųLentelė[[#This Row],[FAKTIŠKAI]]-IšlaidųLentelė[[#This Row],[PRAĖJĘ METAI]]","v":{"v":0,"d":"0.00"}}]
[null,"Draudimas",{"$nulls":3},{"$f":"IšlaidųLentelė[[#This Row],[FAKTIŠKAI]]-IšlaidųLentelė[[#This Row],[SIŪLYTA]]","v":{"v":0,"d":"0.00"}},{"$f":"IšlaidųLentelė[[#This Row],[FAKTIŠKAI]]-IšlaidųLentelė[[#This Row],[PRAĖJĘ METAI]]","v":{"v":0,"d":"0.00"}}]
[null,"Telefonas",{"$nulls":3},{"$f":"IšlaidųLentelė[[#This Row],[FAKTIŠKAI]]-IšlaidųLentelė[[#This Row],[SIŪLYTA]]","v":{"v":0,"d":"0.00"}},{"$f":"IšlaidųLentelė[[#This Row],[FAKTIŠKAI]]-IšlaidųLentelė[[#This Row],[PRAĖJĘ METAI]]","v":{"v":0,"d":"0.00"}}]
[null,"Žiniatinklio mokesčiai (žiniatinklio\nsvetainė, susitikimo erdvė ir pan.)",{"$nulls":3},{"$f":"IšlaidųLentelė[[#This Row],[FAKTIŠKAI]]-IšlaidųLentelė[[#This Row],[SIŪLYTA]]","v":{"v":0,"d":"0.00"}},{"$f":"IšlaidųLentelė[[#This Row],[FAKTIŠKAI]]-IšlaidųLentelė[[#This Row],[PRAĖJĘ METAI]]","v":{"v":0,"d":"0.00"}}]
[null,"Įranga",{"$nulls":3},{"$f":"IšlaidųLentelė[[#This Row],[FAKTIŠKAI]]-IšlaidųLentelė[[#This Row],[SIŪLYTA]]","v":{"v":0,"d":"0.00"}},{"$f":"IšlaidųLentelė[[#This Row],[FAKTIŠKAI]]-IšlaidųLentelė[[#This Row],[PRAĖJĘ METAI]]","v":{"v":0,"d":"0.00"}}]
[null,"Ištekliai",{"$nulls":3},{"$f":"IšlaidųLentelė[[#This Row],[FAKTIŠKAI]]-IšlaidųLentelė[[#This Row],[SIŪLYTA]]","v":{"v":0,"d":"0.00"}},{"$f":"IšlaidųLentelė[[#This Row],[FAKTIŠKAI]]-IšlaidųLentelė[[#This Row],[PRAĖJĘ METAI]]","v":{"v":0,"d":"0.00"}}]
[null,"Pašto išlaidos",{"$nulls":3},{"$f":"IšlaidųLentelė[[#This Row],[FAKTIŠKAI]]-IšlaidųLentelė[[#This Row],[SIŪLYTA]]","v":{"v":0,"d":"0.00"}},{"$f":"IšlaidųLentelė[[#This Row],[FAKTIŠKAI]]-IšlaidųLentelė[[#This Row],[PRAĖJĘ METAI]]","v":{"v":0,"d":"0.00"}}]
[null,"Suma",{"$f":"SUBTOTAL(109,IšlaidųLentelė[PRAĖJĘ METAI])","v":{"v":29500,"d":"29,500.00Lt"}},{"$f":"SUBTOTAL(109,IšlaidųLentelė[SIŪLYTA])","v":{"v":46700,"d":"46,700.00Lt"}},{"$f":"SUBTOTAL(109,IšlaidųLentelė[FAKTIŠKAI])","v":{"v":47750,"d":"47,750.00Lt"}},{"$f":"SUBTOTAL(109,IšlaidųLentelė[NUOKRYPIS])","v":{"v":1050,"d":"1,050.00Lt"}},{"$f":"SUBTOTAL(109,IšlaidųLentelė[+ / – PRAĖJĘ METAI])","v":{"v":18250,"d":"18,250.00Lt"}}]